[Event "FIDE WYCC Girls U18 2023"]
[Site "Montesilvano"]
[Date "2023.11.20"]
[Round "7.3"]
[White "Petricenco, Ana"]
[Black "Mihelic, Vesna"]
[Result "1/2-1/2"]
[ECO "C42"]
[WhiteElo "1902"]
[BlackElo "2102"]
[Annotator "NA RC"]
[PlyCount "92"]
[EventDate "2023.11.13"]
[EventType "swiss"]
[EventCountry "ITA"]
[SourceTitle "playchess.com"]
[Source "ChessBase"]
[SourceQuality "1"]
[TimeControl "40/5400+30:1800+30"]

1. e4 {[%emt 0:00:03]} e5 {[%emt 0:00:05]} 2. Nf3 {[%emt 0:00:12]} Nf6 {[%emt 0:00:11]} 3. Nxe5 {[%emt 0:00:43]} d6 {[%emt 0:00:09]} 4. Nf3 {[%emt 0:00:05]} Nxe4 {[%emt 0:00:07]} 5. Qe2 {[%emt 0:06:16]} Qe7 {[%emt 0:00:07]} 6. d3 {[%emt 0:00:08]} Nf6 {[%emt 0:00:07]} 7. Bg5 {[%emt 0:00:06]} Qxe2+ {[%emt 0:00:13]} 8. Bxe2 {[%emt 0:00:07]} Be7 {[%emt 0:00:05]} 9. Nc3 {[%emt 0:00:38]} Nc6 {[%emt 0:00:37]} 10. O-O-O {[%emt 0:08:08]} Bf5 {[%emt 0:14:25]} 11. Nb5 {[%emt 0:08:56]} O-O-O {[%emt 0:00:31]} 12. Nfd4 {[%emt 0:03:30]} Nxd4 {[%emt 0:12:44]} 13. Nxd4 {[%emt 0:00:09]} Bd7 {[%emt 0:00:31]} 14. Bf3 {[%emt 0:05:39]} h6 {[%emt 0:01:42]} 15. Bd2 {[%emt 0:09:26]} Ng4 {[%emt 0:02:52]} 16. Bxg4 {[%emt 0:02:31]} Bxg4 {[%emt 0:00:08]} 17. Rde1 {[%emt 0:00:07]} Bf6 {[%emt 0:01:22]} 18. Bc3 {[%emt 0:00:29]} Rde8 {[%emt 0:02:40]} 19. Nb5 {[%emt 0:05:36]} Bxc3 {[%emt 0:01:13]} 20. Nxc3 {[%emt 0:00:06]} Bd7 {[%emt 0:02:22]} 21. Kd2 {[%emt 0:02:59]} Bc6 {[%emt 0:00:29]} 22. f3 {[%emt 0:00:49]} Kd8 {[%emt 0:03:44]} 23. Ne2 {[%emt 0:03:41]} b6 {[%emt 0:04:06]} 24. Nd4 {[%emt 0:00:39]} Bd7 {[%emt 0:00:55]} 25. Rxe8+ {[%emt 0:06:10]} Rxe8 {[%emt 0:00:20]} 26. Re1 {[%emt 0:00:06]} Rxe1 {[%emt 0:00:35]} 27. Kxe1 {[%emt 0:00:06]} c5 {[%emt 0:00:28]} 28. Ne2 {[%emt 0:00:06]} Ke7 {[%emt 0:01:13]} 29. Kd2 {[%emt 0:01:28]} g5 {[%emt 0:12:30]} 30. d4 {[%emt 0:02:29]} Bb5 {[%emt 0:03:19]} 31. dxc5 {[%emt 0:00:46]} bxc5 {[%emt 0:05:30]} 32. Nc3 {[%emt 0:00:15]} Bc6 {[%emt 0:00:25]} 33. Ne2 {[%emt 0:02:13]} f5 {[%emt 0:00:55]} 34. a3 {[%emt 0:04:14]} Ke6 {[%emt 0:10:29]} 35. c4 {[%emt 0:01:24]} f4 {[%emt 0:02:04]} 36. b4 {[%emt 0:05:19]} Ke5 {[%emt 0:01:04]} 37. b5 {[%emt 0:08:27]} Bb7 {[%emt 0:07:11]} 38. Kd3 {[%emt 0:05:52]} g4 {[%emt 0:02:46]} 39. Ng1 {[%emt 0:00:07]} d5 {[%emt 0:07:24]} 40. a4 {[%emt 0:00:00]} d4 {[%emt 0:00:00]} 41. a5 {[%emt 0:12:52]} h5 {[%emt 0:03:04]} 42. h3 {[%emt 0:04:51]} Kf6 {[%emt 0:03:13]} 43. h4 {[%emt 0:05:28]} Ke5 {[%emt 0:03:16]} 44. a6 {[%emt 0:01:16]} Ba8 {[%emt 0:02:31]} 45. Kd2 {[%emt 0:00:37]} Kd6 {[%emt 0:01:53]} 46. Kd3 {[%emt 0:00:55]} Ke5 {[%emt 0:01:09]} 1/2-1/2

[Event "FIDE WYCC Girls U18 2023"]
[Site "Montesilvano"]
[Date "2023.11.20"]
[Round "7.4"]
[White "Barwinska, Ewa"]
[Black "Kurmangaliyeva, Liya"]
[Result "0-1"]
[ECO "B40"]
[WhiteElo "1974"]
[BlackElo "2236"]
[Annotator "RC"]
[PlyCount "102"]
[EventDate "2023.11.13"]
[EventType "swiss"]
[EventCountry "ITA"]
[SourceTitle "playchess.com"]
[Source "ChessBase"]
[SourceQuality "1"]
[TimeControl "40/5400+30:1800+30"]

1. e4 {[%emt 0:00:02]} c5 {[%emt 0:00:13]} 2. Nf3 {[%emt 0:00:08]} e6 {[%emt 0:00:05]} 3. d3 {[%emt 0:00:11]} Nc6 {[%emt 0:00:39]} 4. g3 {[%emt 0:00:10]} d6 {[%emt 0:01:52]} 5. Bg2 {[%emt 0:01:00]} Nf6 {[%emt 0:00:06]} 6. O-O {[%emt 0:02:35]} Be7 {[%emt 0:00:03]} 7. Re1 {[%emt 0:01:40]} O-O {[%emt 0:00:28]} 8. c3 {[%emt 0:01:43]} e5 {[%emt 0:00:05]} 9. a3 {[%emt 0:01:40]} h6 {[%emt 0:05:19]} 10. b4 {[%emt 0:05:06]} a6 {[%emt 0:03:57]} 11. Bb2 {[%emt 0:03:04]} Re8 {[%emt 0:04:48]} 12. Nbd2 {[%emt 0:03:38]} Bf8 {[%emt 0:06:09]} 13. Nf1 {[%emt 0:09:59]} Bd7 {[%emt 0:21:06]} 14. Ne3 {[%emt 0:04:54]} Rc8 {[%emt 0:01:32]} 15. h4 {[%emt 0:10:40]} b5 {[%emt 0:02:10]} 16. Nh2 {[%emt 0:03:14]} a5 {[%emt 0:10:57]} 17. Nd5 {[%emt 0:15:21]} Be6 {[%emt 0:03:45]} 18. Nf1 {[%emt 0:06:48]} axb4 {[%emt 0:14:27]} 19. axb4 {[%emt 0:01:01]} cxb4 {[%emt 0:00:11]} 20. Nxb4 {[%emt 0:01:08]} Nxb4 {[%emt 0:00:28]} 21. cxb4 {[%emt 0:00:18]} d5 {[%emt 0:00:03]} 22. exd5 {[%emt 0:03:32]} Nxd5 {[%emt 0:00:16]} 23. Rxe5 {[%emt 0:01:40]} Nxb4 {[%emt 0:06:25]} 24. d4 {[%emt 0:01:39]} Qd7 {[%emt 0:08:30]} 25. Bf3 {[%emt 0:07:40]} Bd6 {[%emt 0:01:38]} 26. Re2 {[%emt 0:00:56]} Bc4 {[%emt 0:02:09]} 27. Rxe8+ {[%emt 0:03:38]} Rxe8 {[%emt 0:00:05]} 28. Qd2 {[%emt 0:03:35]} Nd3 {[%emt 0:01:19]} 29. Ne3 {[%emt 0:01:10]} Bxg3 {[%emt 0:02:59]} 30. fxg3 {[%emt 0:01:09]} Nxb2 {[%emt 0:00:02]} 31. Kh2 {[%emt 0:04:28]} Nd3 {[%emt 0:01:56]} 32. d5 {[%emt 0:00:45]} Qe7 {[%emt 0:01:21]} 33. Nxc4 {[%emt 0:01:44]} bxc4 {[%emt 0:00:04]} 34. Ra4 {[%emt 0:00:26]} Qc5 {[%emt 0:00:37]} 35. d6 {[%emt 0:00:25]} Rd8 {[%emt 0:01:13]} 36. Be4 {[%emt 0:00:19]} Ne5 {[%emt 0:00:32]} 37. Ra5 {[%emt 0:00:47]} Ng4+ {[%emt 0:00:43]} 38. Kg2 {[%emt 0:00:09]} c3 {[%emt 0:00:32]} 39. Qa2 {[%emt 0:01:05]} Qxd6 {[%emt 0:00:17]} 40. Ra8 {[%emt 0:00:00]} Nf6 {[%emt 0:00:00]} 41. Qa5 {[%emt 0:05:04]} Rxa8 {[%emt 0:04:21]} 42. Qxa8+ {[%emt 0:00:27]} Qf8 {[%emt 0:00:05]} 43. Qc6 {[%emt 0:00:07]} Nxe4 {[%emt 0:00:18]} 44. Qxe4 {[%emt 0:00:03]} Qc8 {[%emt 0:00:06]} 45. Qc2 {[%emt 0:00:06]} Qb7+ {[%emt 0:00:48]} 46. Kh3 {[%emt 0:00:20]} Qd7+ {[%emt 0:00:38]} 47. g4 {[%emt 0:00:11]} Qd2 {[%emt 0:02:53]} 48. Qf5 {[%emt 0:00:55]} g6 {[%emt 0:01:43]} 49. Qc8+ {[%emt 0:00:12]} Kg7 {[%emt 0:00:23]} 50. g5 {[%emt 0:00:10]} hxg5 {[%emt 0:00:32]} 51. hxg5 {[%emt 0:00:20]} c2 {[%emt 0:01:27]} 0-1

[Event "FIDE WYCC Girls U18 2023"]
[Site "Montesilvano"]
[Date "2023.11.20"]
[Round "7.5"]
[White "Blanquet, Camille"]
[Black "Zhurova, Anna"]
[Result "0-1"]
[ECO "D38"]
[WhiteElo "1953"]
[BlackElo "2149"]
[Annotator "NA RC"]
[PlyCount "120"]
[EventDate "2023.11.13"]
[EventType "swiss"]
[EventCountry "ITA"]
[SourceTitle "playchess.com"]
[Source "ChessBase"]
[SourceQuality "1"]
[TimeControl "40/5400+30:1800+30"]

1. d4 {[%emt 0:00:03]} Nf6 {[%emt 0:02:00]} 2. c4 {[%emt 0:00:21]} e6 {[%emt 0:00:16]} 3. Nc3 {[%emt 0:00:19]} d5 {[%emt 0:00:25]} 4. Nf3 {[%emt 0:04:04]} Bb4 {[%emt 0:01:01]} 5. e3 {[%emt 0:07:46]} O-O {[%emt 0:00:50]} 6. Bd2 {[%emt 0:02:18]} c5 {[%emt 0:00:57]} 7. a3 {[%emt 0:05:56]} Bxc3 {[%emt 0:00:12]} 8. Bxc3 {[%emt 0:00:06]} Ne4 {[%emt 0:00:20]} 9. Qc2 {[%emt 0:02:10]} Nxc3 {[%emt 0:00:27]} 10. Qxc3 {[%emt 0:00:43]} cxd4 {[%emt 0:00:49]} 11. Qxd4 {[%emt 0:03:23]} Nc6 {[%emt 0:00:46]} 12. Qc3 {[%emt 0:02:04]} Qe7 {[%emt 0:10:15]} 13. cxd5 {[%emt 0:05:30]} exd5 {[%emt 0:00:05]} 14. Be2 {[%emt 0:02:45]} Bf5 {[%emt 0:03:55]} 15. O-O {[%emt 0:04:40]} Rac8 {[%emt 0:01:59]} 16. Rac1 {[%emt 0:02:16]} Rfd8 {[%emt 0:02:07]} 17. Nd4 {[%emt 0:02:38]} Bd7 {[%emt 0:03:41]} 18. Rfd1 {[%emt 0:03:46]} g6 {[%emt 0:02:06]} 19. Nxc6 {[%emt 0:04:01]} bxc6 {[%emt 0:00:38]} 20. Qc5 {[%emt 0:01:39]} Qe5 {[%emt 0:00:33]} 21. Qd4 {[%emt 0:05:50]} Qb8 {[%emt 0:00:53]} 22. Rc5 {[%emt 0:01:46]} Re8 {[%emt 0:01:54]} 23. b4 {[%emt 0:02:55]} Re4 {[%emt 0:02:43]} 24. Qf6 {[%emt 0:01:22]} Rce8 {[%emt 0:03:16]} 25. Bf3 {[%emt 0:02:55]} R4e5 {[%emt 0:06:28]} 26. Qf4 {[%emt 0:03:17]} g5 {[%emt 0:06:59]} 27. Qg3 {[%emt 0:02:48]} Qb6 {[%emt 0:00:14]} 28. h4 {[%emt 0:02:54]} h6 {[%emt 0:00:11]} 29. Bg4 {[%emt 0:03:08]} Bxg4 {[%emt 0:01:23]} 30. Qxg4 {[%emt 0:00:06]} R8e6 {[%emt 0:00:30]} 31. Rd4 {[%emt 0:07:35]} Qd8 {[%emt 0:02:24]} 32. hxg5 {[%emt 0:01:15]} Rxg5 {[%emt 0:01:01]} 33. Qf3 {[%emt 0:00:39]} Reg6 {[%emt 0:07:01]} 34. g3 {[%emt 0:00:20]} h5 {[%emt 0:00:14]} 35. Kh2 {[%emt 0:04:27]} Rg4 {[%emt 0:02:00]} 36. Rxg4 {[%emt 0:01:30]} hxg4 {[%emt 0:00:09]} 37. Qf4 {[%emt 0:01:35]} Kg7 {[%emt 0:20:26]} 38. Qd4+ {[%emt 0:02:37]} Kh7 {[%emt 0:00:26]} 39. Ra5 {[%emt 0:01:24]} Qg5 {[%emt 0:00:52]} 40. Rxa7 {[%emt 0:00:00]} Rh6+ {[%emt 0:00:00]} 41. Kg2 {[%emt 0:07:09]} Qh5 {[%emt 0:04:32]} 42. Qd3+ {[%emt 0:07:25]} Kg7 {[%emt 0:01:37]} 43. Kf1 {[%emt 0:01:17]} Qh1+ {[%emt 0:01:16]} 44. Ke2 {[%emt 0:00:05]} Qf3+ {[%emt 0:01:00]} 45. Kd2 {[%emt 0:00:09]} Qxf2+ {[%emt 0:00:42]} 46. Kc3 {[%emt 0:01:22]} Qxg3 {[%emt 0:03:49]} 47. Qd4+ {[%emt 0:01:25]} Rf6 {[%emt 0:01:25]} 48. Ra8 {[%emt 0:03:39]} Qf3 {[%emt 0:10:05]} 49. Qe5 {[%emt 0:01:33]} g3 {[%emt 0:01:10]} 50. Qe8 {[%emt 0:01:13]} Kg6 {[%emt 0:03:37]} 51. Qg8+ {[%emt 0:01:31]} Kh5 {[%emt 0:01:50]} 52. Re8 {[%emt 0:01:29]} d4+ {[%emt 0:01:34]} 53. Kxd4 {[%emt 0:06:17]} Qg4+ {[%emt 0:01:48]} 54. e4 {[%emt 0:00:08]} Qxg8 {[%emt 0:07:44]} 55. Rxg8 {[%emt 0:00:06]} Kh4 {[%emt 0:00:02]} 56. Ke3 {[%emt 0:01:16]} Kh3 {[%emt 0:00:13]} 57. a4 {[%emt 0:02:22]} g2 {[%emt 0:01:12]} 58. Rxg2 {[%emt 0:02:16]} Kxg2 {[%emt 0:00:04]} 59. a5 {[%emt 0:00:10]} Rd6 {[%emt 0:00:37]} 60. e5 {[%emt 0:01:04]} Rd5 {[%emt 0:00:16]} 0-1

[Event "FIDE WYCC Girls U18 2023"]
[Site "Montesilvano"]
[Date "2023.11.20"]
[Round "7.6"]
[White "Hakobyan, Astghik"]
[Black "Oviedo Acosta, Paula"]
[Result "1/2-1/2"]
[ECO "B43"]
[WhiteElo "2073"]
[BlackElo "1639"]
[Annotator "NA RC"]
[PlyCount "116"]
[EventDate "2023.11.13"]
[EventType "swiss"]
[EventCountry "ITA"]
[SourceTitle "playchess.com"]
[Source "ChessBase"]
[SourceQuality "1"]
[TimeControl "40/5400+30:1800+30"]

1. e4 {[%emt 0:00:03]} c5 {[%emt 0:00:37]} 2. Nf3 {[%emt 0:00:06]} e6 {[%emt 0:00:16]} 3. d4 {[%emt 0:00:05]} cxd4 {[%emt 0:00:10]} 4. Nxd4 {[%emt 0:00:05]} a6 {[%emt 0:00:14]} 5. Nc3 {[%emt 0:00:15]} b5 {[%emt 0:00:39]} 6. Bd3 {[%emt 0:00:10]} Qb6 {[%emt 0:00:17]} 7. Nf3 {[%emt 0:00:11]} Qc7 {[%emt 0:00:26]} 8. O-O {[%emt 0:00:17]} Bb7 {[%emt 0:00:29]} 9. Re1 {[%emt 0:00:16]} Be7 {[%emt 0:01:18]} 10. e5 {[%emt 0:00:38]} f5 {[%emt 0:00:57]} 11. Nd4 {[%emt 0:00:25]} Bc5 {[%emt 0:00:48]} 12. Bxf5 {[%emt 0:32:52]} Bxd4 {[%emt 0:25:02]} 13. Qxd4 {[%emt 0:01:21]} exf5 {[%emt 0:02:47]} 14. e6 {[%emt 0:05:22]} dxe6 {[%emt 0:02:07]} 15. Rxe6+ {[%emt 0:04:49]} Kf7 {[%emt 0:04:16]} 16. Bf4 {[%emt 0:05:48]} Qd7 {[%emt 0:19:16]} 17. Rd6 {[%emt 0:01:56]} Qe8 {[%emt 0:03:28]} 18. Qb6 {[%emt 0:13:09]} Qc8 {[%emt 0:03:39]} 19. Rd8 {[%emt 0:04:46]} Qc6 {[%emt 0:04:16]} 20. Qxc6 {[%emt 0:00:19]} Nxc6 {[%emt 0:02:01]} 21. Rd7+ {[%emt 0:00:06]} Nge7 {[%emt 0:00:28]} 22. Rxb7 {[%emt 0:00:10]} Ra7 {[%emt 0:00:10]} 23. Rxa7 {[%emt 0:05:47]} Nxa7 {[%emt 0:00:10]} 24. Rd1 {[%emt 0:05:10]} Nac6 {[%emt 0:02:51]} 25. Ne2 {[%emt 0:01:34]} Rc8 {[%emt 0:05:55]} 26. c3 {[%emt 0:01:45]} Na5 {[%emt 0:01:21]} 27. Rd7 {[%emt 0:02:50]} Nac6 {[%emt 0:03:15]} 28. f3 {[%emt 0:03:09]} h6 {[%emt 0:00:45]} 29. h4 {[%emt 0:00:38]} Rd8 {[%emt 0:01:01]} 30. Rxd8 {[%emt 0:02:37]} Nxd8 {[%emt 0:00:07]} 31. Nd4 {[%emt 0:05:45]} Kf6 {[%emt 0:00:37]} 32. Kf2 {[%emt 0:02:45]} Nb7 {[%emt 0:01:50]} 33. Bd2 {[%emt 0:01:00]} Nc5 {[%emt 0:00:07]} 34. Ke2 {[%emt 0:00:33]} Nd5 {[%emt 0:00:09]} 35. b3 {[%emt 0:00:14]} g5 {[%emt 0:02:15]} 36. hxg5+ {[%emt 0:00:12]} hxg5 {[%emt 0:00:06]} 37. g3 {[%emt 0:01:11]} g4 {[%emt 0:00:43]} 38. fxg4 {[%emt 0:00:36]} fxg4 {[%emt 0:00:07]} 39. Be1 {[%emt 0:00:26]} Ke5 {[%emt 0:01:43]} 40. Nc2 {[%emt 0:00:00]} Ke4 {[%emt 0:00:00]} 41. c4 {[%emt 0:04:05]} bxc4 {[%emt 0:03:02]} 42. bxc4 {[%emt 0:00:06]} Nf6 {[%emt 0:00:42]} 43. Ne3 {[%emt 0:09:40]} Nd3 {[%emt 0:00:37]} 44. Bc3 {[%emt 0:02:15]} Nh5 {[%emt 0:02:02]} 45. Nxg4 {[%emt 0:00:34]} Nxg3+ {[%emt 0:06:10]} 46. Kd2 {[%emt 0:00:12]} Nc5 {[%emt 0:00:44]} 47. Nf2+ {[%emt 0:02:18]} Kf5 {[%emt 0:00:51]} 48. Ke3 {[%emt 0:02:25]} Ke6 {[%emt 0:00:40]} 49. Bb4 {[%emt 0:02:19]} Nf5+ {[%emt 0:00:47]} 50. Kd2 {[%emt 0:01:36]} Nb7 {[%emt 0:00:40]} 51. Kd3 {[%emt 0:00:31]} Kd7 {[%emt 0:01:45]} 52. Ke4 {[%emt 0:01:55]} Ng7 {[%emt 0:02:06]} 53. Kd5 {[%emt 0:02:50]} Ne6 {[%emt 0:00:06]} 54. c5 {[%emt 0:03:21]} Nc7+ {[%emt 0:00:05]} 55. Kc4 {[%emt 0:00:11]} Kc6 {[%emt 0:00:05]} 56. Nd3 {[%emt 0:01:12]} Ne6 {[%emt 0:03:41]} 57. Ne5+ {[%emt 0:00:26]} Kc7 {[%emt 0:00:07]} 58. Bd2 {[%emt 0:00:32]} Nexc5 {[%emt 0:00:30]} 1/2-1/2

[Event "FIDE WYCC Girls U18 2023"]
[Site "Montesilvano"]
[Date "2023.11.20"]
[Round "7.7"]
[White "Gasimova, Samra"]
[Black "Voriskova, Anna"]
[Result "1/2-1/2"]
[ECO "A45"]
[WhiteElo "1860"]
[BlackElo "2065"]
[Annotator "NA RC"]
[PlyCount "76"]
[EventDate "2023.11.13"]
[EventType "swiss"]
[EventCountry "ITA"]
[SourceTitle "playchess.com"]
[Source "ChessBase"]
[SourceQuality "1"]
[TimeControl "40/5400+30:1800+30"]

1. d4 {[%emt 0:00:03]} Nf6 {[%emt 0:00:07]} 2. Nc3 {[%emt 0:00:05]} d5 {[%emt 0:00:50]} 3. Bf4 {[%emt 0:00:11]} e6 {[%emt 0:03:42]} 4. Nb5 {[%emt 0:02:14]} Na6 {[%emt 0:01:44]} 5. e3 {[%emt 0:00:41]} c6 {[%emt 0:00:47]} 6. Nc3 {[%emt 0:00:23]} Be7 {[%emt 0:04:37]} 7. Nf3 {[%emt 0:00:33]} O-O {[%emt 0:00:25]} 8. Bxa6 {[%emt 0:00:37]} bxa6 {[%emt 0:00:06]} 9. Ne5 {[%emt 0:00:17]} Bb7 {[%emt 0:03:52]} 10. Na4 {[%emt 0:02:35]} c5 {[%emt 0:13:28]} 11. Nxc5 {[%emt 0:00:13]} Bxc5 {[%emt 0:01:03]} 12. dxc5 {[%emt 0:00:02]} Qa5+ {[%emt 0:01:40]} 13. c3 {[%emt 0:00:05]} Qxc5 {[%emt 0:01:00]} 14. O-O {[%emt 0:00:20]} Rac8 {[%emt 0:01:41]} 15. h3 {[%emt 0:12:10]} h6 {[%emt 0:01:28]} 16. Rc1 {[%emt 0:09:37]} Rfd8 {[%emt 0:03:08]} 17. Qd4 {[%emt 0:07:48]} Qb6 {[%emt 0:01:01]} 18. Rfd1 {[%emt 0:11:38]} Ne4 {[%emt 0:01:42]} 19. f3 {[%emt 0:13:34]} Nd6 {[%emt 0:01:14]} 20. Ng4 {[%emt 0:13:56]} Nf5 {[%emt 0:04:36]} 21. Qxb6 {[%emt 0:00:35]} axb6 {[%emt 0:00:02]} 22. c4 {[%emt 0:00:27]} h5 {[%emt 0:13:01]} 23. Nf2 {[%emt 0:01:28]} e5 {[%emt 0:02:31]} 24. Bxe5 {[%emt 0:02:43]} Nxe3 {[%emt 0:00:34]} 25. Re1 {[%emt 0:00:14]} Nxc4 {[%emt 0:03:26]} 26. Bd4 {[%emt 0:00:09]} b5 {[%emt 0:01:13]} 27. Nd3 {[%emt 0:03:35]} a5 {[%emt 0:06:11]} 28. b3 {[%emt 0:02:54]} Nd6 {[%emt 0:00:12]} 29. Bb6 {[%emt 0:00:21]} Rxc1 {[%emt 0:02:28]} 30. Rxc1 {[%emt 0:00:03]} Ra8 {[%emt 0:00:43]} 31. Rc7 {[%emt 0:01:43]} Bc8 {[%emt 0:05:10]} 32. Nf4 {[%emt 0:02:29]} Be6 {[%emt 0:02:13]} 33. Rc5 {[%emt 0:05:01]} a4 {[%emt 0:01:46]} 34. Nxd5 {[%emt 0:02:17]} axb3 {[%emt 0:00:27]} 35. axb3 {[%emt 0:00:05]} Ra2 {[%emt 0:03:57]} 36. Nc7 {[%emt 0:04:51]} Bxb3 {[%emt 0:01:26]} 37. Nxb5 {[%emt 0:00:15]} Nc4 {[%emt 0:02:08]} 38. Nd4 {[%emt 0:01:01]} Nxb6 {[%emt 0:03:11]} 1/2-1/2

[Event "FIDE WYCC Girls U18 2023"]
[Site "Montesilvano"]
[Date "2023.11.20"]
[Round "7.8"]
[White "Matute Escobar, Roxanny"]
[Black "Nguyen, Thien Ngan"]
[Result "0-1"]
[ECO "C55"]
[WhiteElo "1995"]
[BlackElo "1891"]
[Annotator "NA RC"]
[PlyCount "96"]
[EventDate "2023.11.13"]
[EventType "swiss"]
[EventCountry "ITA"]
[SourceTitle "playchess.com"]
[Source "ChessBase"]
[SourceQuality "1"]
[TimeControl "40/5400+30:1800+30"]

1. e4 {[%emt 0:03:04]} e5 {[%emt 0:00:10]} 2. Nf3 {[%emt 0:00:08]} Nc6 {[%emt 0:00:08]} 3. Bc4 {[%emt 0:00:06]} Nf6 {[%emt 0:00:08]} 4. d3 {[%emt 0:00:05]} Be7 {[%emt 0:00:08]} 5. c3 {[%emt 0:00:41]} O-O {[%emt 0:00:08]} 6. Nbd2 {[%emt 0:00:16]} d6 {[%emt 0:01:28]} 7. Bb3 {[%emt 0:00:47]} Na5 {[%emt 0:03:19]} 8. Bc2 {[%emt 0:00:16]} c5 {[%emt 0:00:12]} 9. O-O {[%emt 0:02:22]} Nc6 {[%emt 0:02:20]} 10. a4 {[%emt 0:03:28]} a6 {[%emt 0:06:21]} 11. Nc4 {[%emt 0:09:31]} Be6 {[%emt 0:06:44]} 12. Ne3 {[%emt 0:00:46]} h6 {[%emt 0:11:54]} 13. d4 {[%emt 0:05:45]} exd4 {[%emt 0:06:07]} 14. cxd4 {[%emt 0:00:23]} Nb4 {[%emt 0:02:49]} 15. Bb1 {[%emt 0:01:20]} Ng4 {[%emt 0:09:41]} 16. h3 {[%emt 0:05:16]} Nxe3 {[%emt 0:04:09]} 17. Bxe3 {[%emt 0:00:07]} b5 {[%emt 0:10:21]} 18. Qd2 {[%emt 0:16:37]} f5 {[%emt 0:21:45]} 19. e5 {[%emt 0:21:01]} Rc8 {[%emt 0:10:21]} 20. axb5 {[%emt 0:06:28]} axb5 {[%emt 0:00:01]} 21. Re1 {[%emt 0:01:02]} dxe5 {[%emt 0:01:39]} 22. Nxe5 {[%emt 0:00:27]} Rf6 {[%emt 0:00:20]} 23. dxc5 {[%emt 0:04:16]} Qxd2 {[%emt 0:01:00]} 24. Bxd2 {[%emt 0:00:02]} Bxc5 {[%emt 0:00:24]} 25. Ra5 {[%emt 0:00:36]} Rd8 {[%emt 0:00:49]} 26. Re2 {[%emt 0:01:50]} Bd6 {[%emt 0:00:22]} 27. Rxb5 {[%emt 0:00:45]} Nd5 {[%emt 0:00:40]} 28. Nc6 {[%emt 0:03:53]} Rc8 {[%emt 0:00:26]} 29. Nd4 {[%emt 0:00:06]} Nf4 {[%emt 0:00:26]} 30. Re1 {[%emt 0:04:08]} Bd7 {[%emt 0:00:16]} 31. Rb7 {[%emt 0:01:13]} Rd8 {[%emt 0:00:42]} 32. Bc3 {[%emt 0:00:26]} Rg6 {[%emt 0:00:24]} 33. Bxf5 Bxf5 {[%emt 0:00:17]} 34. Nxf5 {[%emt 0:05:01]} Nxg2 {[%emt 0:00:14]} 35. Re4 {[%emt 0:00:53]} Ne3+ {[%emt 0:00:56]} 36. Ng3 {[%emt 0:00:22]} Bxg3 {[%emt 0:00:19]} 37. fxg3 {[%emt 0:00:26]} Nd1 {[%emt 0:00:53]} 38. Be5 {[%emt 0:02:24]} Re8 {[%emt 0:00:35]} 39. Re1 {[%emt 0:00:12]} Rg5 {[%emt 0:00:24]} 40. Rxd1 {[%emt 0:00:00]} Rexe5 {[%emt 0:00:00]} 41. Rb3 {[%emt 0:12:38]} Re2 {[%emt 0:02:57]} 42. Rf1 {[%emt 0:00:21]} h5 {[%emt 0:08:27]} 43. Rf2 {[%emt 0:01:43]} Re1+ {[%emt 0:00:32]} 44. Kg2 {[%emt 0:00:05]} h4 {[%emt 0:03:44]} 45. g4 {[%emt 0:04:29]} Rge5 {[%emt 0:05:08]} 46. Kf3 {[%emt 0:05:29]} Kh7 {[%emt 0:03:30]} 47. Rb4 {[%emt 0:06:21]} R1e3+ {[%emt 0:01:31]} 48. Kf4 {[%emt 0:00:11]} g5# {[%emt 0:00:18]} 0-1

[Event "FIDE WYCC Girls U18 2023"]
[Site "Montesilvano"]
[Date "2023.11.20"]
[Round "7.9"]
[White "Bhagyashree Patil"]
[Black "Nguyen Hong Nhung"]
[Result "0-1"]
[ECO "A80"]
[WhiteElo "1830"]
[BlackElo "1975"]
[Annotator "NA RC"]
[PlyCount "102"]
[EventDate "2023.11.13"]
[EventType "swiss"]
[EventCountry "ITA"]
[SourceTitle "playchess.com"]
[Source "ChessBase"]
[SourceQuality "1"]
[TimeControl "40/5400+30:1800+30"]

1. d4 {[%emt 0:00:26]} f5 {[%emt 0:00:06]} 2. Nc3 {[%emt 0:00:04]} Nf6 {[%emt 0:00:06]} 3. Bg5 {[%emt 0:00:05]} d5 {[%emt 0:00:06]} 4. e3 {[%emt 0:00:26]} e6 {[%emt 0:00:07]} 5. Bd3 {[%emt 0:04:32]} Be7 {[%emt 0:00:15]} 6. Nge2 {[%emt 0:05:27]} O-O {[%emt 0:00:37]} 7. Nf4 {[%emt 0:02:17]} Ne4 {[%emt 0:03:08]} 8. Bxe7 {[%emt 0:02:09]} Qxe7 {[%emt 0:00:06]} 9. h4 {[%emt 0:08:58]} c6 {[%emt 0:05:02]} 10. Bxe4 {[%emt 0:15:02]} fxe4 {[%emt 0:01:46]} 11. Qe2 {[%emt 0:01:25]} Nd7 {[%emt 0:03:04]} 12. O-O-O {[%emt 0:05:22]} e5 {[%emt 0:02:06]} 13. dxe5 {[%emt 0:05:12]} Nxe5 {[%emt 0:00:23]} 14. f3 {[%emt 0:00:22]} b5 {[%emt 0:25:53]} 15. Rdf1 {[%emt 0:14:12]} exf3 {[%emt 0:02:50]} 16. gxf3 {[%emt 0:06:37]} Nc4 {[%emt 0:01:49]} 17. Nd3 {[%emt 0:01:15]} Qxe3+ {[%emt 0:00:43]} 18. Qxe3 {[%emt 0:00:08]} Nxe3 {[%emt 0:00:06]} 19. Re1 {[%emt 0:00:19]} Nf5 {[%emt 0:15:23]} 20. Nc5 {[%emt 0:04:05]} Nd4 {[%emt 0:03:00]} 21. Re7 {[%emt 0:00:45]} Bf5 {[%emt 0:03:40]} 22. h5 {[%emt 0:05:22]} Rf7 {[%emt 0:02:01]} 23. Re5 {[%emt 0:03:05]} Nxf3 {[%emt 0:01:07]} 24. Re2 {[%emt 0:00:30]} Raf8 {[%emt 0:01:53]} 25. Rg2 {[%emt 0:01:55]} g6 {[%emt 0:02:56]} 26. Ne2 {[%emt 0:00:37]} g5 {[%emt 0:02:19]} 27. h6 {[%emt 0:01:31]} Re8 {[%emt 0:02:26]} 28. b3 {[%emt 0:05:54]} Rfe7 {[%emt 0:02:12]} 29. Ng3 {[%emt 0:01:23]} Bg6 {[%emt 0:00:43]} 30. Kb2 {[%emt 0:00:12]} Re1 {[%emt 0:06:49]} 31. Rxe1 {[%emt 0:01:05]} Rxe1 {[%emt 0:00:22]} 32. Rf2 {[%emt 0:00:15]} g4 {[%emt 0:00:35]} 33. Ne2 {[%emt 0:00:12]} Rh1 {[%emt 0:02:25]} 34. Nd7 {[%emt 0:01:14]} Bf5 {[%emt 0:02:29]} 35. Ng3 {[%emt 0:00:46]} Bxd7 {[%emt 0:01:20]} 36. Nxh1 {[%emt 0:00:03]} Kf7 {[%emt 0:00:40]} 37. Re2 {[%emt 0:01:17]} Bf5 {[%emt 0:00:32]} 38. Ng3 {[%emt 0:01:09]} Bg6 {[%emt 0:01:11]} 39. c3 {[%emt 0:01:24]} Kf6 {[%emt 0:00:25]} 40. a4 {[%emt 0:00:00]} a6 {[%emt 0:00:00]} 41. a5 {[%emt 0:02:23]} c5 {[%emt 0:05:27]} 42. Kc1 {[%emt 0:01:08]} d4 {[%emt 0:02:07]} 43. cxd4 {[%emt 0:00:05]} cxd4 {[%emt 0:00:24]} 44. Kd1 {[%emt 0:00:26]} d3 {[%emt 0:01:54]} 45. Re3 {[%emt 0:00:29]} Kg5 {[%emt 0:00:46]} 46. Re6 {[%emt 0:05:17]} Bf7 {[%emt 0:00:14]} 47. Ne4+ {[%emt 0:00:02]} Kh4 {[%emt 0:03:04]} 48. Rxa6 {[%emt 0:01:18]} Bxb3+ {[%emt 0:00:10]} 49. Kc1 {[%emt 0:00:01]} g3 {[%emt 0:04:09]} 50. Rg6 {[%emt 0:09:28]} Bd5 {[%emt 0:00:32]} 51. Nc3 {[%emt 0:04:23]} Ng5 {[%emt 0:00:16]} 0-1